bitfinex/quotes_BTCUSD_20240721
["timestamp","ask_amount","ask_price","bid_price","bid_amount"]
[1721559413658,1.54361629,66957.0,66956.0,0.00949982]
[1721559415917,1.69796586,66957.0,66956.0,0.00949982]
[1721559417260,1.70722272,66957.0,66956.0,0.00949982]
[1721559417704,1.55287315,66957.0,66956.0,0.00949982]
[1721559421850,1.5528731,66957.0,66956.0,0.00949982]
[1721559428145,1.55287316,66957.0,66956.0,0.00949982]
[1721559431787,1.63547316,66957.0,66956.0,0.00949982]
[1721559433698,1.55287316,66957.0,66956.0,0.00949982]
[1721559434722,1.55287316,66957.0,66956.0,0.00949983]
[1721559439138,1.78512273,66957.0,66956.0,0.00949983]
[1721559439967,1.63077316,66957.0,66956.0,0.00949983]
[1721559441105,1.63077298,66957.0,66956.0,0.00949983]
[1721559441868,1.55287298,66957.0,66956.0,0.00949983]
[1721559444358,1.31391398,66957.0,66956.0,0.00949983]
[1721559445792,1.31394614,66957.0,66956.0,0.00949983]
[1721559448100,1.28109873,66957.0,66956.0,0.00949983]
[1721559448323,1.28109873,66957.0,66956.0,0.14989983]
[1721559449397,0.94288304,66957.0,66956.0,0.14989983]
[1721559449626,1.03214933,66957.0,66956.0,0.14989984]
[1721559450456,0.94288304,66957.0,66956.0,0.14989985]
[1721559454283,0.94288304,66957.0,66956.0,0.14989986]
[1721559458897,1.18184204,66957.0,66956.0,0.08579986]
[1721559459111,1.33983171,66957.0,66956.0,0.00949986]
[1721559459321,1.27105432,66957.0,66956.0,0.00949986]
[1721559459551,1.38335739,66957.0,66956.0,0.00949986]
[1721559459736,1.38335739,66957.0,66956.0,0.00949987]
[1721559460716,1.29335739,66957.0,66956.0,0.00949987]
[1721559460929,1.29335739,66957.0,66956.0,0.07089987]
[1721559461309,1.38335739,66957.0,66956.0,0.07089987]
[1721559463763,1.38335217,66957.0,66956.0,0.07089987]
[1721559466748,1.38335547,66957.0,66956.0,0.07089987]
[1721559466976,1.27184204,66957.0,66956.0,0.07089987]
[1721559467187,1.38335607,66957.0,66956.0,0.07089987]
[1721559467403,1.38335607,66957.0,66956.0,0.14689987]
[1721559467606,1.27184204,66957.0,66956.0,0.14689987]
[1721559468241,1.27184204,66957.0,66956.0,0.14689988]
[1721559468877,1.36105629,66957.0,66956.0,0.14689988]
[1721559469085,1.27184204,66957.0,66956.0,0.14689988]
[1721559469560,1.18184204,66957.0,66956.0,0.14689988]
[1721559473324,1.18184204,66957.0,66956.0,0.00949988]
[1721559473560,1.36105076,66957.0,66956.0,0.00949988]
[1721559475618,1.36105076,66957.0,66956.0,0.15089988]
[1721559475833,1.27184204,66957.0,66956.0,0.15089988]
[1721559476044,1.27184204,66957.0,66956.0,0.15089989]
[1721559476263,1.03288304,66957.0,66956.0,0.15089989]
[1721559476473,0.94288304,66957.0,66956.0,0.15089989]
[1721559480402,1.18184204,66957.0,66956.0,0.00949989]
[1721559482045,1.25944204,66957.0,66956.0,0.00949989]
[1721559484438,1.34944204,66957.0,66956.0,0.00949989]
[1721559484616,1.43864656,66957.0,66956.0,0.00949989]
[1721559485252,1.74275061,66957.0,66956.0,0.00949989]
[1721559485711,1.50379161,66957.0,66956.0,0.00949989]
[1721559486737,1.34944204,66957.0,66956.0,0.00949989]
[1721559487693,1.58840104,66957.0,66956.0,0.00949989]
[1721559488899,1.62124845,66957.0,66956.0,0.00949989]
[1721559495704,1.95842743,66957.0,66956.0,0.00949989]
[1721559495903,1.25202541,66953.0,66952.0,0.009196]
[1721559496106,1.61238354,66953.0,66952.0,0.009196]
[1721559497230,2.03352186,66953.0,66952.0,1e-06]
[1721559497427,1.25215641,66945.0,66943.0,0.0001]
[1721559497627,1.70796615,66945.0,66943.0,0.0001]
[1721559497805,1.64376615,66945.0,66943.0,0.0001]
[1721559497989,1.45273815,66945.0,66943.0,0.0001]
[1721559498191,1.54185247,66945.0,66943.0,0.0001]
[1721559498602,1.48073815,66945.0,66943.0,0.0001]
[1721559498807,1.56985126,66945.0,66943.0,0.0001]
[1721559499017,1.55585126,66945.0,66943.0,0.0001]
[1721559499668,1.55915284,66945.0,66943.0,0.0001]
[1721559500146,1.47003973,66945.0,66943.0,0.0001]
[1721559500840,1.55553435,66945.0,66943.0,0.0001]
[1721559501067,1.95685742,66945.0,66943.0,0.0001]
[1721559501261,1.94734431,66945.0,66943.0,0.0001]
[1721559501700,2.03645742,66945.0,66943.0,0.0001]
[1721559501906,1.93334431,66945.0,66943.0,0.0001]
[1721559502143,2.02238958,66945.0,66943.0,0.0001]
[1721559502347,1.93334431,66945.0,66943.0,0.0001]
[1721559502518,1.94734431,66945.0,66943.0,0.0001]
[1721559502722,1.97210963,66945.0,66943.0,0.0001]
[1721559502929,1.94734431,66945.0,66943.0,0.0001]
[1721559503571,1.95068073,66945.0,66943.0,0.0001]
[1721559503783,1.93668073,66945.0,66943.0,0.0001]
[1721559504004,1.92268073,66945.0,66943.0,0.0001]
[1721559504220,1.95068073,66945.0,66943.0,0.0001]
[1721559504821,1.93668073,66945.0,66943.0,0.0001]
[1721559505041,1.96468073,66945.0,66943.0,0.0001]
[1721559507369,1.52600422,66945.0,66943.0,0.0001]
[1721559508265,1.51200422,66945.0,66943.0,0.0001]
[1721559508483,1.52600422,66945.0,66943.0,0.0001]
[1721559509358,1.49800422,66945.0,66943.0,0.0001]
[1721559510180,1.48400422,66945.0,66943.0,0.0001]
[1721559510401,1.51200422,66945.0,66943.0,0.0001]
[1721559510607,1.66635379,66945.0,66943.0,0.0001]
[1721559510813,1.81015379,66945.0,66943.0,0.0001]
[1721559513564,1.83491911,66945.0,66943.0,0.0001]
[1721559514827,1.82091911,66945.0,66943.0,0.0001]
[1721559515686,1.81015379,66945.0,66943.0,0.0001]
[1721559518969,1.83491911,66945.0,66943.0,0.0001]
[1721559520239,2.23132111,66945.0,66943.0,0.0001]
[1721559520450,2.24057694,66945.0,66943.0,0.0001]
[1721559520679,2.24057694,66945.0,66933.0,0.009207]
[1721559520680,0.836643,66934.0,66933.0,0.009207]
[1721559520919,1.09102474,66934.0,66933.0,0.009207]
[1721559521121,1.33672602,66934.0,66933.0,0.009207]
[1721559521275,1.42672602,66934.0,66933.0,0.009207]
[1721559521888,1.44072602,66934.0,66933.0,0.009207]
[1721559522314,1.87588122,66934.0,66933.0,0.009207]
[1721559522515,1.96664654,66934.0,66933.0,0.009207]
[1721559522711,1.075815,66926.0,66925.0,0.071496]
[1721559523022,1.36304415,66926.0,66925.0,0.071496]
[1721559523341,1.49934856,66926.0,66925.0,0.071496]
[1721559523961,1.49934856,66926.0,66925.0,0.009196]
[1721559524168,1.50734856,66926.0,66925.0,0.009196]
[1721559524385,1.51634856,66926.0,66925.0,0.009196]
[1721559524579,1.51965464,66926.0,66925.0,0.009196]
[1721559524992,1.51065464,66926.0,66925.0,0.009196]
[1721559525194,1.50265464,66926.0,66925.0,0.009196]
[1721559525400,1.51565464,66926.0,66925.0,0.009196]
[1721559525603,1.39035023,66926.0,66925.0,0.009196]
[1721559526014,1.35750282,66926.0,66925.0,0.154196]
[1721559527310,1.39035023,66926.0,66925.0,0.154196]
[1721559527720,1.11843282,66926.0,66925.0,0.154196]
[1721559527933,1.23183811,66926.0,66925.0,0.154196]
[1721559531911,1.27358076,66926.0,66925.0,0.009196]
[1721559532976,1.28886076,66926.0,66925.0,0.009196]
[1721559533381,1.52793076,66926.0,66925.0,0.009196]
[1721559533657,1.53125392,66926.0,66925.0,0.009196]
[1721559534784,1.62125392,66926.0,66925.0,0.009196]
[1721559537500,1.50784863,66926.0,66925.0,0.150596]
[1721559538301,1.47500122,66926.0,66925.0,0.150596]
[1721559542582,1.38500122,66926.0,66925.0,0.150596]
[1721559542994,1.14593122,66926.0,66925.0,0.150596]
[1721559543203,1.14593122,66926.0,66925.0,0.17583068]
[1721559544030,1.14593122,66926.0,66925.0,0.150596]
[1721559544236,1.26208635,66926.0,66925.0,0.150596]
[1721559544863,1.35208635,66926.0,66925.0,0.150596]
[1721559545068,1.26208635,66926.0,66925.0,0.072896]
[1721559546093,1.14593122,66926.0,66925.0,0.072896]
[1721559546567,1.23593122,66926.0,66925.0,0.072896]
[1721559546782,1.23593122,66926.0,66925.0,0.07309135]
[1721559548051,1.23593122,66926.0,66925.0,0.15079135]
[1721559550502,1.22930198,66926.0,66925.0,0.15079135]
[1721559550697,1.31275348,66926.0,66925.0,0.15079135]
[1721559553149,1.31275348,66926.0,66925.0,0.07309135]
[1721559553310,1.31275348,66926.0,66925.0,0.00939135]
[1721559559863,1.34560089,66926.0,66925.0,0.00939135]
[1721559560065,1.58467089,66926.0,66925.0,0.00939135]
[1721559560266,1.58467089,66926.0,66925.0,0.07059135]
[1721559560890,1.58467089,66926.0,66925.0,0.00939135]
[1721559564323,1.66637089,66926.0,66925.0,0.00939135]
[1721559565443,1.58467089,66926.0,66925.0,0.00939135]
[1721559567353,1.6739035,66926.0,66925.0,0.00939135]
[1721559569318,1.69621165,66926.0,66925.0,0.00939135]
[1721559569557,1.59393035,66926.0,66925.0,0.00939135]
[1721559570056,1.59393034,66926.0,66925.0,0.00939135]
[1721559570293,1.69623806,66926.0,66925.0,0.00939135]
[1721559570521,1.69623503,66926.0,66925.0,0.00939135]
[1721559571172,1.5939303,66926.0,66925.0,0.00939135]
[1721559573097,1.58467089,66926.0,66925.0,0.00939135]
[1721559573316,1.59393023,66926.0,66925.0,0.00939135]
[1721559576444,1.58467089,66926.0,66925.0,0.00939135]
[1721559576625,1.59393021,66926.0,66925.0,0.00939135]
[1721559579173,1.58467089,66926.0,66925.0,0.00939135]
[1721559579383,1.59393018,66926.0,66925.0,0.00939135]
[1721559579800,1.58467089,66926.0,66925.0,0.00939135]
[1721559580010,1.59393017,66926.0,66925.0,0.00939135]
[1721559584165,1.70545652,66926.0,66925.0,0.00939135]
[1721559585339,1.59393017,66926.0,66925.0,0.00939135]
[1721559586421,1.59393006,66926.0,66925.0,0.00939135]
[1721559587663,1.70545917,66926.0,66925.0,0.00939135]
[1721559588078,1.59393006,66926.0,66925.0,0.00939135]
[1721559589696,1.59393003,66926.0,66925.0,0.00939135]
[1721559590097,1.59393002,66926.0,66925.0,0.00939135]
[1721559592602,1.59392999,66926.0,66925.0,0.00939135]
[1721559592860,1.59393002,66926.0,66925.0,0.00939135]
[1721559595635,1.70546249,66926.0,66925.0,0.00939135]
[1721559596091,1.59392927,66926.0,66925.0,0.00939135]
[1721559599291,1.58467089,66926.0,66925.0,0.00939135]
[1721559599461,1.5939291,66926.0,66925.0,0.00939135]
[1721559601843,1.82374089,66926.0,66925.0,0.00939135]
[1721559602061,1.83299882,66926.0,66925.0,0.00939135]
[1721559602287,1.82374089,66926.0,66925.0,0.00939135]
[1721559602488,0.03284741,66922.0,66921.0,0.009207]
[1721559602698,0.72591308,66922.0,66921.0,0.009207]
[1721559602904,1.06499708,66922.0,66921.0,0.009207]
[1721559603187,1.54316508,66922.0,66921.0,0.009207]
[1721559603360,1.69751465,66922.0,66921.0,0.009207]
[1721559604016,1.70851465,66922.0,66921.0,0.009207]
[1721559604216,1.72151465,66922.0,66921.0,0.009207]
[1721559604632,1.72151365,66922.0,66921.0,0.009207]
[1721559604833,1.96059765,66922.0,66921.0,0.009207]
[1721559605572,0.917706,66913.0,66910.0,0.001]
[1721559605772,1.26223774,66913.0,66910.0,0.001]
[1721559605970,1.50135374,66913.0,66912.0,0.009207]
[1721559606752,1.51535374,66913.0,66912.0,0.009207]
[1721559606883,1.60290331,66913.0,66912.0,0.009207]
[1721559607325,1.60290331,66913.0,66912.0,0.149707]
[1721559607326,1.44855374,66913.0,66912.0,0.149707]
[1721559608534,1.43455374,66913.0,66912.0,0.149707]
[1721559608914,1.44855374,66913.0,66912.0,0.149707]
[1721559609137,0.119581,66900.0,66899.0,0.02770221]
[1721559609343,0.358695,66909.0,66908.0,0.01715259]
[1721559609576,0.61322674,66909.0,66908.0,0.01715259]
[1721559609779,0.61322674,66909.0,66908.0,0.14127946]
[1721559610637,0.62722674,66909.0,66908.0,0.14127946]
[1721559611111,0.01415,66909.0,66908.0,0.73911446]
[1721559611321,0.119547,66919.0,66908.0,0.38041346]
[1721559611519,0.358626,66922.0,66921.0,0.01715259]
[1721559611735,0.51300774,66922.0,66921.0,0.01715259]
[1721559612150,0.51300774,66922.0,66921.0,0.15575259]
[1721559612351,0.61300774,66922.0,66921.0,0.15575259]
[1721559612777,0.51300774,66922.0,66921.0,0.15575259]
[1721559612976,0.52400774,66922.0,66921.0,0.15575259]
[1721559613467,0.51300774,66922.0,66921.0,0.15575259]
[1721559613891,0.52500774,66922.0,66921.0,0.15575259]
[1721559614387,0.76809174,66922.0,66921.0,0.15675259]
[1721559615077,0.75209174,66922.0,66921.0,0.15575259]
[1721559615289,0.75179174,66922.0,66921.0,0.15575259]
[1721559615493,0.76279174,66922.0,66921.0,0.15675259]
[1721559615702,1.07947487,66922.0,66921.0,0.1396]
[1721559615884,1.06847487,66922.0,66921.0,0.1396]
[1721559616138,0.99087574,66922.0,66921.0,0.1396]
[1721559616340,0.76179174,66922.0,66921.0,0.1396]
[1721559616776,0.52270774,66922.0,66921.0,0.15675259]
[1721559619538,0.16438174,66922.0,66921.0,0.15675259]
[1721559621375,0.16423478,66922.0,66921.0,0.15675259]
[1721559633280,0.01,66922.0,66921.0,0.15675259]
[1721559633488,0.01,66922.0,66921.0,0.28085052]
[1721559634789,0.02419955,66926.0,66925.0,0.01715259]
[1721559634994,0.17858129,66926.0,66925.0,0.15825259]
[1721559635195,0.27858129,66926.0,66925.0,0.15825259]
[1721559637260,0.28258129,66926.0,66925.0,0.15825259]
[1721559637761,0.28258129,66926.0,66925.0,0.28234612]
[1721559638045,0.011,66926.0,66925.0,0.28234612]
[1721559639526,0.011,66926.0,66925.0,0.28233762]
[1721559640116,0.011,66926.0,66925.0,0.28233743]
[1721559642601,0.011,66926.0,66925.0,0.15825259]
[1721559642801,0.011,66926.0,66925.0,0.28233743]
[1721559648251,0.011,66926.0,66925.0,0.20593743]
[1721559648451,0.011,66926.0,66925.0,0.14123743]
[1721559649266,0.011,66926.0,66925.0,0.14124109]
[1721559649907,0.16538174,66926.0,66925.0,0.14124109]
[1721559650265,0.16538174,66926.0,66925.0,0.1240885]
[1721559652396,0.16538174,66926.0,66925.0,0.12408944]
[1721559655103,0.24118174,66926.0,66925.0,0.12408944]
[1721559655479,0.24118174,66926.0,66923.0,0.01715259]
[1721559655725,0.15438174,66925.0,66924.0,0.12409662]
[1721559656310,0.15438174,66925.0,66923.0,0.01715259]
[1721559656516,0.15438174,66925.0,66924.0,0.12409851]
[1721559657860,0.15438174,66925.0,66918.0,0.0764]
[1721559657861,0.29468174,66925.0,66918.0,0.01715259]
[1721559658064,0.29468174,66925.0,66919.0,0.12409862]
[1721559658241,0.29468174,66925.0,66920.0,0.12409862]
[1721559658242,0.29868174,66925.0,66920.0,0.12409862]
[1721559658614,0.30468174,66925.0,66919.0,0.01715259]
[1721559658792,0.30468174,66925.0,66920.0,0.1241]
[1721559658994,0.30468174,66925.0,66909.0,0.05236665]
[1721559658995,0.33606474,66925.0,66921.0,0.1241]
[1721559659201,0.33006474,66925.0,66922.0,0.1241]
[1721559659406,0.29868174,66925.0,66917.0,0.01715259]
[1721559659608,0.29468174,66925.0,66918.0,0.12410107]
[1721559659780,0.29868174,66925.0,66919.0,0.12410107]
[1721559660050,0.29868174,66925.0,66920.0,0.12410107]
[1721559660252,0.0794,66923.0,66921.0,0.12410107]
[1721559660456,0.15438174,66922.0,66917.0,0.01715259]
[1721559660659,0.15438174,66922.0,66918.0,0.12410205]
[1721559660833,0.2439,66921.0,66919.0,0.12410205]
[1721559661034,0.2439,66921.0,66912.0,0.01715259]
[1721559661035,0.15438174,66920.0,66912.0,0.01715259]
[1721559661210,0.15438174,66920.0,66913.0,0.12410646]
[1721559661409,0.15438174,66920.0,66914.0,0.12410646]
[1721559661654,0.15438174,66920.0,66912.0,0.01715259]
[1721559661655,0.15438174,66920.0,66915.0,0.12410646]
[1721559661855,0.15438174,66920.0,66916.0,0.12410646]
[1721559662040,0.15438174,66920.0,66917.0,0.12410646]
[1721559662399,0.15438174,66920.0,66918.0,0.12410646]
[1721559662609,0.15438174,66920.0,66919.0,0.12410646]
[1721559663322,0.1,66921.0,66920.0,0.09355259]
[1721559663551,0.10914827,66930.0,66923.0,0.01715259]
[1721559663819,0.08024,66933.0,66923.0,0.01715259]
[1721559663820,0.15438174,66929.0,66924.0,0.12410646]
[1721559664073,0.1,66928.0,66923.0,0.01715259]
[1721559664315,0.15438174,66927.0,66924.0,0.12409753]
[1721559664526,0.1,66926.0,66923.0,0.01715259]
[1721559664734,0.15438174,66925.0,66923.0,0.01715259]
[1721559664951,0.1,66924.0,66923.0,0.01715259]
[1721559665168,0.25438174,66924.0,66923.0,0.14125293]
[1721559667351,0.26038174,66924.0,66923.0,0.14225293]
[1721559667723,0.26038174,66924.0,66923.0,0.14225004]
[1721559667724,0.27238174,66924.0,66923.0,0.14225004]
[1721559667924,0.27238174,66924.0,66923.0,0.27985004]
[1721559670038,0.118,66924.0,66923.0,0.27985004]
[1721559670236,0.018,66924.0,66923.0,0.27985004]
[1721559670441,0.018,66924.0,66923.0,0.27984829]
[1721559673642,0.006,66924.0,66923.0,0.20344829]
[1721559673846,0.1794,66930.0,66929.0,0.01715259]
[1721559674063,0.3591412,66930.0,66929.0,0.01715259]
[1721559674475,0.0663,66928.0,66922.0,0.01715259]
[1721559674682,0.004,66924.0,66923.0,0.14124865]
[1721559674896,0.15838174,66924.0,66923.0,0.12409606]
[1721559675100,0.39918174,66924.0,66923.0,0.12409606]
[1721559675610,0.40518174,66924.0,66923.0,0.12409606]
[1721559676864,0.39918174,66924.0,66920.0,0.000924]
[1721559677064,0.15438174,66923.0,66921.0,0.12409962]
[1721559677289,0.15438174,66923.0,66922.0,0.12409964]
[1721559677945,0.15438174,66923.0,66922.0,0.27099964]
[1721559678540,0.15838174,66923.0,66922.0,0.27099964]
[1721559679411,0.15438174,66923.0,66922.0,0.27099964]
[1721559679765,0.15438174,66923.0,66922.0,0.27099576]
[1721559680169,0.1,66924.0,66923.0,0.01715259]
[1721559680365,0.15438174,66924.0,66923.0,0.14124835]
[1721559680564,0.1,66924.0,66923.0,0.14124835]
[1721559681378,0.112,66924.0,66923.0,0.14124835]
[1721559681579,0.012,66924.0,66923.0,0.14124835]
[1721559685143,0.012,66924.0,66923.0,0.20674835]
[1721559686355,0.012,66924.0,66923.0,0.20674408]
[1721559686741,0.012,66924.0,66923.0,0.08265259]
[1721559686942,0.012,66924.0,66923.0,0.20674408]
[1721559697302,0.012,66924.0,66923.0,0.14124408]
[1721559698603,0.31128174,66924.0,66923.0,0.14124408]
[1721559698817,0.41128174,66924.0,66923.0,0.14124408]
[1721559699043,0.41128174,66924.0,66923.0,0.01715259]
[1721559699257,0.41128174,66924.0,66923.0,0.12409499]
[1721559699660,0.41128174,66924.0,66920.0,0.01807659]
[1721559699661,0.0792,66923.0,66920.0,0.000924]
[1721559699867,0.23358174,66922.0,66921.0,0.1241011]
[1721559700916,0.27350991,66922.0,66921.0,0.1241011]
[1721559701121,0.33920991,66922.0,66921.0,0.1241011]
[1721559701965,0.34220991,66922.0,66921.0,0.1241011]
[1721559702385,0.0792,66921.0,66920.0,0.000924]
[1721559702557,0.0792,66921.0,66920.0,0.12502595]
[1721559702558,0.23358174,66921.0,66920.0,0.12502595]
[1721559703004,0.23358174,66921.0,66920.0,0.14217854]
[1721559705455,0.23558174,66921.0,66920.0,0.14217854]
[1721559705699,0.23558174,66921.0,66920.0,0.14217357]
[1721559706102,0.23858174,66921.0,66920.0,0.14217357]
[1721559709115,0.21200706,66921.0,66920.0,0.14217357]
[1721559711199,0.21200706,66921.0,66920.0,0.12502098]
[1721559711200,0.27770706,66921.0,66920.0,0.12502098]
[1721559711575,0.33757606,66921.0,66920.0,0.12502098]
[1721559712052,0.33757606,66921.0,66920.0,0.12502532]
[1721559712668,0.21925074,66921.0,66920.0,0.12502532]
[1721559713523,0.15938174,66921.0,66920.0,0.12502532]
[1721559715205,0.15938174,66921.0,66920.0,0.000924]
[1721559715415,0.15938174,66921.0,66920.0,0.12502145]
[1721559715626,0.15938174,66921.0,66920.0,0.000924]
[1721559715829,0.15938174,66921.0,66920.0,0.12502144]
[1721559718509,0.15938174,66921.0,66920.0,0.12501727]
[1721559721017,0.15938174,66921.0,66920.0,0.000924]
[1721559721233,0.15938174,66921.0,66920.0,0.12501727]
[1721559721847,0.005,66921.0,66920.0,0.28426986]
[1721559723320,0.002,66921.0,66920.0,0.28426986]
[1721559723527,0.002,66921.0,66920.0,0.28725789]
[1721559723999,0.005,66921.0,66920.0,0.28725789]
[1721559724252,0.005,66921.0,66920.0,0.28426986]
[1721559724526,0.002,66921.0,66920.0,0.28426986]
[1721559725150,0.06885942,66930.0,66928.0,0.01715259]
[1721559725368,0.15438174,66929.0,66928.0,0.01715259]
[1721559725568,0.25438174,66929.0,66928.0,0.14123985]
[1721559726571,0.25938174,66929.0,66928.0,0.14123985]
[1721559726771,0.26238174,66929.0,66928.0,0.14123985]
[1721559727175,0.26238174,66929.0,66928.0,0.01715259]
[1721559727380,0.26238174,66929.0,66928.0,0.14123986]
[1721559730262,0.26322174,66929.0,66928.0,0.14123986]
[1721559730465,0.10884,66929.0,66928.0,0.14123985]
[1721559730724,0.00884,66929.0,66928.0,0.14123985]
[1721559732478,0.00872105,66929.0,66928.0,0.14123985]
[1721559733814,0.00872105,66929.0,66928.0,0.14123983]
[1721559736087,0.00872105,66929.0,66928.0,0.28333983]
[1721559736924,0.00872105,66929.0,66928.0,0.15925259]
[1721559737163,0.00872105,66929.0,66928.0,0.2833384]
[1721559739146,0.00872105,66929.0,66928.0,0.1412384]
[1721559741652,0.16310279,66929.0,66928.0,0.12408581]
[1721559741875,0.41130279,66929.0,66928.0,0.12408581]
[1721559742961,0.41130279,66929.0,66923.0,0.01715259]
[1721559742962,0.1482,66928.0,66923.0,0.01715259]
[1721559743185,0.30258174,66927.0,66922.0,0.01715259]
[1721559743436,0.30258174,66927.0,66923.0,0.12409564]
[1721559743636,0.0816,66926.0,66924.0,0.12409564]
[1721559743842,0.15438174,66925.0,66922.0,0.01715259]
[1721559744084,0.15438174,66925.0,66923.0,0.12409586]
[1721559744290,0.15438174,66925.0,66924.0,0.12409586]
[1721559745946,0.15438174,66925.0,66924.0,0.12509586]
[1721559746140,0.15438174,66925.0,66924.0,0.12409586]
[1721559746612,0.15438174,66925.0,66924.0,0.12609547]
[1721559746817,0.10084,66929.0,66926.0,0.01715259]
[1721559747034,0.25438174,66928.0,66927.0,0.14124806]
[1721559747467,0.1,66928.0,66927.0,0.14124806]
[1721559748322,0.00084,66929.0,66927.0,0.14124806]
[1721559748564,0.00084,66929.0,66928.0,0.14124806]
[1721559749606,0.00584,66929.0,66928.0,0.14124806]
[1721559749841,0.00884,66929.0,66928.0,0.14123321]
[1721559750054,0.00884,66929.0,66928.0,0.28683321]
[1721559750268,0.01184,66929.0,66928.0,0.28683321]
[1721559750924,0.00684,66929.0,66928.0,0.28683321]
[1721559751388,0.01184,66929.0,66928.0,0.28683321]
[1721559753019,0.01184,66929.0,66928.0,0.28683143]
[1721559759520,0.01184,66929.0,66928.0,0.28683142]
[1721559759728,0.01184,66929.0,66928.0,0.14123142]
[1721559759882,0.01184,66929.0,66928.0,0.14123143]
[1721559760327,0.01184,66929.0,66928.0,0.12407884]
[1721559760328,0.16622174,66929.0,66928.0,0.12407884]
[1721559760607,0.40812174,66929.0,66928.0,0.12407884]
[1721559763419,0.34172174,66929.0,66928.0,0.12407884]
[1721559763852,0.11184,66929.0,66928.0,0.14123143]
[1721559763998,0.11184,66929.0,66928.0,0.14215543]
[1721559765198,0.01184,66929.0,66928.0,0.14215543]
[1721559765985,0.01184,66929.0,66928.0,0.1421638]
[1721559769100,0.01184,66929.0,66928.0,0.01807659]
[1721559769225,0.01184,66929.0,66928.0,0.1421638]
[1721559772441,0.01184,66929.0,66928.0,0.01807659]
[1721559772654,0.01184,66929.0,66928.0,0.1421638]
[1721559775735,0.01184,66929.0,66928.0,0.14216379]
[1721559779412,0.01184,66929.0,66928.0,0.1421638]
[1721559780206,0.30482174,66929.0,66928.0,0.12501121]
[1721559780407,0.40482174,66929.0,66928.0,0.12501121]
[1721559781510,0.40482174,66929.0,66928.0,0.12501741]
[1721559781907,0.40482174,66929.0,66928.0,0.1250174]
[1721559784485,0.40482174,66929.0,66928.0,0.12501741]
[1721559789140,0.34182174,66929.0,66928.0,0.12501741]
[1721559790977,0.34182174,66929.0,66928.0,0.000924]
[1721559791196,0.34182174,66929.0,66928.0,0.12501804]
[1721559791421,0.34182174,66929.0,66928.0,0.12501802]
[1721559795278,0.34182174,66929.0,66928.0,0.12501817]
[1721559796852,0.26622174,66929.0,66928.0,0.12501817]
[1721559797053,0.11184,66929.0,66928.0,0.28897076]
[1721559797280,0.01184,66929.0,66928.0,0.28897076]
[1721559798081,0.01178023,66929.0,66928.0,0.28897076]
[1721559800882,0.01178023,66929.0,66928.0,0.28897055]
[1721559801084,0.01178023,66929.0,66928.0,0.16487659]
[1721559801288,0.01178023,66929.0,66928.0,0.28897055]
[1721559802381,0.01178023,66929.0,66928.0,0.14217055]
[1721559807288,0.01178023,66929.0,66928.0,0.01807659]
[1721559807502,0.01178023,66929.0,66928.0,0.27986609]
[1721559810589,0.01178023,66929.0,66928.0,0.27985815]
[1721559810805,0.01178023,66929.0,66928.0,0.15577659]
[1721559811035,0.01178023,66929.0,66928.0,0.27985487]
[1721559811691,0.01178023,66929.0,66928.0,0.33284259]
[1721559811998,0.01178023,66929.0,66928.0,0.57130226]
[1721559812096,0.01178023,66929.0,66928.0,0.56831454]
[1721559812348,0.01178023,66929.0,66928.0,0.56830895]
[1721559812571,0.00578023,66929.0,66928.0,0.56830895]
[1721559812984,0.00578023,66929.0,66928.0,0.93750315]
[1721559812985,0.00778023,66929.0,66928.0,0.93750315]
[1721559813190,0.00078023,66929.0,66928.0,0.93750315]
[1721559813389,0.00378023,66929.0,66928.0,0.6585492]
[1721559813617,0.00478023,66929.0,66928.0,0.60028957]
[1721559813841,0.00478023,66929.0,66928.0,0.59128957]
[1721559814045,0.00178023,66929.0,66928.0,0.59128957]
[1721559814247,0.00278023,66929.0,66928.0,0.59228957]
[1721559814450,0.00278023,66929.0,66928.0,0.39863092]
[1721559814656,0.00278023,66929.0,66928.0,0.34863092]
[1721559814856,0.00178023,66929.0,66928.0,0.59128787]
[1721559815051,0.00178023,66929.0,66928.0,0.59128625]
[1721559815388,0.00278023,66929.0,66928.0,0.40862056]
[1721559815586,0.00178023,66929.0,66928.0,0.40862056]
[1721559815992,0.00278023,66929.0,66928.0,0.60228486]
[1721559816194,0.00278023,66929.0,66928.0,0.63113303]
[1721559816440,0.00378023,66929.0,66928.0,0.61628379]
[1721559816603,0.00278023,66929.0,66928.0,0.61428379]
[1721559816805,0.00078023,66929.0,66928.0,0.59127806]
[1721559817098,0.00178023,66929.0,66928.0,0.59327806]
[1721559817525,0.00078023,66929.0,66928.0,0.59127806]
[1721559817909,0.00178023,66929.0,66928.0,0.59327806]
[1721559818354,0.00078023,66929.0,66928.0,0.63603109]
[1721559818858,0.00178023,66929.0,66928.0,0.63803109]
[1721559819572,0.00178023,66929.0,66928.0,0.3995902]
[1721559820004,0.00178023,66929.0,66928.0,0.41158323]
[1721559820212,0.00178023,66929.0,66928.0,0.35283717]
[1721559820412,0.00278023,66929.0,66928.0,0.23077659]
[1721559820611,0.00278023,66929.0,66928.0,0.35782451]
[1721559820910,0.00178023,66929.0,66928.0,0.35582451]
[1721559821135,0.00178023,66929.0,66928.0,0.35782451]
[1721559821136,0.00278023,66929.0,66928.0,0.35782451]
[1721559821739,0.00178023,66929.0,66928.0,0.35582451]
[1721559821873,0.00178023,66929.0,66928.0,0.35782451]
[1721559821874,0.00278023,66929.0,66928.0,0.35782451]
[1721559822237,0.00378023,66929.0,66928.0,0.37182451]
[1721559823200,0.00378023,66929.0,66928.0,0.37182449]
[1721559823616,0.00378023,66929.0,66928.0,0.52620623]
[1721559823816,0.00278023,66929.0,66928.0,0.7102895]
[1721559824015,0.00278023,66929.0,66928.0,0.77738065]
[1721559824338,0.00378023,66929.0,66928.0,0.7122895]
[1721559824559,0.00378023,66929.0,66928.0,1.1106361]
[1721559824775,0.00378023,66929.0,66928.0,1.04354495]
[1721559824972,0.00348023,66929.0,66928.0,1.04354495]
[1721559825389,0.00348023,66929.0,66928.0,1.11060105]
[1721559826170,0.00348023,66929.0,66928.0,1.20104495]
[1721559826368,0.00348023,66929.0,66928.0,0.60665833]
[1721559826566,0.00348023,66929.0,66928.0,1.31506788]
[1721559827429,0.00348023,66929.0,66928.0,0.98382466]
[1721559828393,0.00348023,66929.0,66928.0,0.91677769]
[1721559830062,0.00148023,66929.0,66928.0,0.90277769]
[1721559830261,0.00148023,66929.0,66928.0,0.91477769]
[1721559830711,0.00248023,66929.0,66928.0,0.91677769]
[1721559832628,0.00248023,66929.0,66928.0,0.96145151]
[1721559832996,0.00248023,66929.0,66928.0,0.96145113]
[1721559833419,0.00248023,66929.0,66928.0,0.83740371]
[1721559833758,0.00248023,66929.0,66928.0,0.9614513]
[1721559836143,0.00248023,66929.0,66928.0,0.60665833]
[1721559836344,0.00248023,66929.0,66928.0,0.96144594]